fUSD/lending_fUSD_20240617
["ID","MTS","AMOUNT","RATE_DAILY","PERIOD"]
[329730562,1718625067537,-382.631433,0.0002725,7]
[329730563,1718625067547,-382.631433,0.0002725,7]
[329730564,1718625067559,-151.0,0.0002725,7]
[329730565,1718625067572,-178.696019,0.0002725,7]
[329730566,1718625067584,-178.696019,0.0002725,7]
[329730567,1718625067596,-171.25169783,0.0002726,2]
[329730568,1718625067610,-150.0,0.0002726,2]
[329730569,1718625067621,-154.43667046,0.00027264,2]
[329730570,1718625067633,-470.49823528,0.00027265,2]
[329730571,1718625067646,-309.86137286,0.00027271,19]
[329730572,1718625067659,-1500.0,0.00027274,2]
[329730573,1718625067672,-1500.0,0.00027279,2]
[329730574,1718625067703,-7764.05554253,0.0002728,3]
[329730575,1718625067728,-583.26861769,0.0002728,3]
[329730576,1718625067754,-197.92115591,0.00027282,2]
[329730577,1718625067770,-150.0,0.00027282,2]
[329730578,1718625067802,-1500.0,0.00027283,2]
[329730579,1718625067817,-150.0,0.00027288,2]
[329730580,1718625067836,-150.0,0.00027288,2]
[329730581,1718625067852,-150.0,0.00027288,2]
[329730582,1718625067888,-150.0,0.00027288,2]
[329730583,1718625067916,-150.0,0.00027288,2]
[329730584,1718625067983,-527.15,0.00027288,2]
[329730585,1718625068004,-300.0,0.00027288,2]
[329730586,1718625068040,-333.96,0.00027288,2]
[329730587,1718625068058,-306.68,0.00027288,2]
[329730588,1718625068072,-845.12,0.00027288,2]
[329730589,1718625068084,-300.0,0.00027288,2]
[329730590,1718625068095,-527.15,0.00027288,2]
[329730591,1718625068107,-150.0,0.00027288,2]
[329730592,1718625068118,-527.15,0.00027288,2]
[329730593,1718625068134,-152.63,0.00027288,2]
[329730594,1718625068149,-852.03,0.00027288,2]
[329730595,1718625068171,-150.0,0.00027288,2]
[329730596,1718625068199,-164.25,0.00027288,2]
[329730597,1718625068213,-157.35,0.00027288,2]
[329730598,1718625068238,-418.01,0.00027288,2]
[329730599,1718625068257,-852.03,0.00027288,2]
[329730600,1718625068276,-852.03,0.00027288,2]
[329730601,1718625068303,-418.01,0.00027288,2]
[329730602,1718625068319,-852.03,0.00027288,2]
[329730603,1718625068343,-852.03,0.00027288,2]
[329730604,1718625068354,-418.01,0.00027288,2]
[329730605,1718625068367,-852.03,0.00027288,2]
[329730606,1718625068382,-852.03,0.00027288,2]
[329730607,1718625068397,-852.03,0.00027288,2]
[329730608,1718625068429,-418.01,0.00027288,2]
[329730609,1718625068450,-852.03,0.00027288,2]
[329730610,1718625068466,-418.01,0.00027288,2]
[329730611,1718625068477,-852.03,0.00027288,2]
[329730612,1718625068496,-852.03,0.00027288,2]
[329730613,1718625068508,-418.01,0.00027288,2]
[329730614,1718625068525,-852.03,0.00027288,2]
[329730615,1718625068536,-852.03,0.00027288,2]
[329730616,1718625068563,-418.01,0.00027288,2]
[329730617,1718625068585,-852.03,0.00027288,2]
[329730618,1718625068616,-852.03,0.00027288,2]
[329730619,1718625068629,-418.01,0.00027288,2]
[329730620,1718625068640,-448.54,0.00027288,2]
[329730621,1718625068652,-418.01,0.00027288,2]
[329730622,1718625068666,-418.01,0.00027288,2]
[329730623,1718625068683,-418.01,0.00027288,2]
[329730624,1718625068704,-418.01,0.00027288,2]
[329730625,1718625068722,-418.01,0.00027288,2]
[329730626,1718625068736,-418.01,0.00027288,2]
[329730627,1718625068748,-543.039405,0.00027289,2]
[329730628,1718625068763,-1172.965114,0.00027289,2]
[329730629,1718625068789,-193.308666,0.00027289,2]
[329730630,1718625068805,-159.701651,0.00027289,2]
[329730631,1718625068834,-3271.068988,0.00027289,2]
[329730632,1718625068849,-150.867959,0.00027289,2]
[329730633,1718625068873,-213.21288,0.00027289,2]
[329730634,1718625068887,-357.883112,0.00027289,2]
[329730635,1718625068898,-7059.190538,0.00027289,2]
[329730636,1718625068909,-6503.766023,0.00027289,2]
[329730637,1718625068924,-3232.697035,0.00027289,2]
[329730638,1718625068948,-302.315451,0.00027289,2]
[329730639,1718625068976,-195.932698,0.00027289,2]
[329730640,1718625069002,-449.866465,0.00027289,2]
[329730641,1718625069014,-10588.785808,0.00027289,2]
[329730642,1718625069026,-3271.068988,0.00027289,2]
[329730643,1718625069049,-155.0,0.00027295,2]
[329730644,1718625069082,-500.0,0.00027297,8]
[329730645,1718625069105,-260.04121335,0.00027298,2]
[329730646,1718625069133,-536.63326235,0.00027298,2]
[329730647,1718625069176,-171.14632606,0.00027298,2]
[329730648,1718625069203,-186.7008312,0.00027298,2]
[329730649,1718625069221,-156.38587268,0.00027298,2]
[329730650,1718625069242,-156.15243361,0.00027298,2]
[329730651,1718625069256,-491.95676735,0.00027298,2]
[329730652,1718625069270,-406.19128934,0.00027298,2]
[329730653,1718625069292,-400.0,0.00027298,2]
[329730654,1718625069384,-696.19774639,0.00027298,2]
[329730655,1718625069396,-377.96079445,0.00027298,2]
[329730656,1718625069429,-155.0,0.00027298,2]
[329730657,1718625069465,-157.15925098,0.00027298,2]
[329730658,1718625069526,-1414.76148748,0.00027298,2]
[329730659,1718625069539,-327.03263673,0.00027298,2]
[329730660,1718625069553,-9226.68140711,0.00027298,2]
[329730661,1718625069566,-155.61383732,0.00027298,2]
[329730662,1718625069584,-155.1670999,0.00027298,2]
[329730663,1718625069596,-155.0,0.00027298,2]
[329730664,1718625069622,-155.325726,0.00027298,2]
[329730665,1718625069637,-543.46593808,0.00027298,2]
[329730666,1718625069653,-155.01014188,0.00027298,2]
[329730667,1718625069668,-2103.28914058,0.00027298,2]
[329730668,1718625069681,-156.02082366,0.00027298,2]
[329730669,1718625069692,-155.48493369,0.00027298,2]
[329730670,1718625069713,-155.20156601,0.00027298,2]
[329730671,1718625069732,-3017.04643973,0.00027298,2]
[329730672,1718625069760,-155.71572967,0.00027298,2]
[329730673,1718625069789,-306.96298591,0.00027298,2]
[329730675,1718625069806,-304.83958689,0.00027298,2]
[329730676,1718625069847,-3959.95580288,0.00027298,2]
[329730677,1718625069872,-289.32903108,0.00027298,2]
[329730678,1718625069891,-436.69232455,0.00027298,2]
[329730679,1718625069917,-155.68142194,0.00027298,2]
[329730680,1718625069979,-155.49683224,0.00027298,2]
[329730681,1718625070001,-155.69207569,0.00027298,2]
[329730682,1718625070049,-155.09465346,0.00027298,2]
[329730683,1718625070074,-1276.83800861,0.00027298,2]
[329730684,1718625070087,-155.0,0.00027298,2]
[329730685,1718625070112,-868.5858517,0.00027298,2]
[329730686,1718625070141,-155.77378889,0.00027298,2]
[329730687,1718625070165,-1782.31988206,0.00027298,2]
[329730688,1718625070177,-19731.60134652,0.00027298,2]
[329730689,1718625070190,-650.00900782,0.00027298,2]
[329730690,1718625070205,-155.0,0.00027298,2]
[329730691,1718625070260,-160.80473435,0.00027298,2]
[329730692,1718625070275,-404.10839263,0.00027298,8]
[329730693,1718625070303,-4659.22752906,0.00027299,2]
[329730694,1718625070325,-151.0,0.00027299,7]
[329730695,1718625070353,-243.290808,0.00027299,7]
[329730696,1718625070367,-266.404316,0.00027299,7]
[329730697,1718625070441,-266.404316,0.00027299,7]
[329730698,1718625070483,-151.0,0.00027299,7]
[329730699,1718625070501,-222.198442,0.00027299,7]
[329730700,1718625070521,-222.198442,0.00027299,7]
[329730701,1718625070535,-217.266397,0.00027299,7]
[329730702,1718625070550,-217.266397,0.00027299,7]
[329730703,1718625070584,-428.192811,0.00027299,7]
[329730704,1718625070621,-428.192811,0.00027299,7]
[329730705,1718625070634,-151.0,0.00027299,7]
[329730706,1718625070651,-292.301306,0.00027299,7]
[329730707,1718625070665,-325.607582,0.00027299,7]
[329730708,1718625070683,-325.607582,0.00027299,7]
[329730709,1718625070704,-151.0,0.00027299,7]
[329730710,1718625070726,-151.0,0.00027299,7]
[329730711,1718625070737,-157.674058,0.00027299,7]
[329730712,1718625070751,-157.674058,0.00027299,7]
[329730713,1718625070763,-330.962042,0.00027299,7]
[329730714,1718625070777,-330.962042,0.00027299,7]
[329730715,1718625070792,-382.631433,0.00027299,7]
[329730716,1718625070803,-382.631433,0.00027299,7]
[329730717,1718625070818,-151.0,0.00027299,7]
[329730718,1718625070847,-178.696019,0.00027299,7]
[329730719,1718625070869,-178.696019,0.00027299,7]
[329730720,1718625070881,-244280.52543955,0.00027299,2]
[329730721,1718625070903,-1428.34106471,0.00027299,2]
[329730722,1718625070930,-173.08967441,0.000273,5]
[329730723,1718625070956,-500.0,0.000273,2]
[329730724,1718625070979,-500.0,0.000273,2]
[329730725,1718625071033,-500.0,0.000273,2]
[329730726,1718625071046,-974.0,0.000273,2]
[329730727,1718625071074,-250.0,0.000273,2]
[329730728,1718625071088,-512.0,0.000273,2]
[329730729,1718625071107,-768.71,0.000273,2]
[329730730,1718625071126,-2347215.07896327,0.000273,5]
[329730731,1718625074023,-254.10882654,0.00013858,2]
[329730732,1718625074068,-302.49198847,0.00013998,2]
[329730733,1718625074085,-2265.38183999,0.00013999,2]
[329730734,1718625074366,-488.8217922,0.00013999,2]
[329730735,1718625074454,-1000.0,0.000139,2]
[329730736,1718625074479,-1385.8243296,0.00013999,2]
[329730737,1718625074521,-380.43528124,0.00013999,2]
[329730738,1718625074543,-505.14,0.00013999,2]
[329730739,1718625074609,-292.064,0.00013999,2]
[329730740,1718625075175,-710.33,0.00013998,2]
[329730741,1718625075372,-551.84951674,0.00013998,2]
[329730742,1718625075390,-585.89033158,0.00013999,2]
[329730743,1718625075401,-209.23301289,0.00013999,2]
[329730744,1718625075413,-1077.54723309,0.00018312,2]
[329730749,1718625195733,200.0,0.00027452,120]
[329730783,1718625860219,347.2,0.0002489,30]
[329730849,1718626233574,-259.99573651,0.00013994,2]
[329730850,1718626233586,-1262.17951674,0.00013997,2]
[329730851,1718626233600,-364.05790334,0.00013998,2]
[329730852,1718626233611,-1598.3667458,0.00013998,2]
[329730853,1718626233622,-43.92284605,0.00017807,2]
[329730854,1718626233653,-106.07715395,0.00017807,2]
[329730855,1718626233664,-164.18871832,0.00017807,2]
[329730856,1718626233682,-135.81128168,0.00017807,2]
[329730857,1718626233697,-142.48641963,0.000181,2]
[329730858,1718626233852,-865.31617129,0.000181,2]
[329730859,1718626233868,-1594.19740908,0.000181,2]
[329730860,1718626233880,-1927.09300087,0.00018312,2]
[329730861,1718626233896,-420.0,0.00019433,2]
[329730862,1718626233907,-290.43,0.00019452,2]
[329730863,1718626233918,-247.90127446,0.00019726,2]
[329730864,1718626233932,-271.05628702,0.00019726,2]
[329730865,1718626234581,-851.70842797,0.00019726,2]
[329730866,1718626234671,-2496.92401055,0.00019726,2]
[329730867,1718626234686,-503.07598945,0.00019726,2]
[329730868,1718626234702,-1298.21401055,0.00019726,2]
[329730869,1718626234727,-31.07001718,0.0002,2]
[329730876,1718626240418,-333.80754324,0.0002,2]
[329730877,1718626240434,-1250.0,0.00021,2]
[329730878,1718626240468,-61.83658674,0.00021208,2]
[329730879,1718626240495,-368.36047548,0.00021208,2]
[329730880,1718626240629,-156.80293778,0.00021208,2]
[329730881,1718626240642,-184.594,0.00021894,2]
[329730882,1718626240663,-56.42382427,0.00021894,2]
[329730887,1718626241046,-149.83017573,0.00021894,2]
[329730888,1718626241087,-200.329,0.00021894,2]
[329730889,1718626241105,-667.65437937,0.000227,5]
[329730890,1718626241226,-11075.34562063,0.000227,5]
[329730891,1718626241240,-1300.0,0.00023,2]
[329730892,1718626241268,-389.09,0.00023022,2]
[329730893,1718626241283,-2940.1145,0.00023124,2]
[329730894,1718626241304,-823.0,0.00023145,2]
[329730895,1718626241316,-151.417,0.00023147,2]
[329730896,1718626241347,-1000.0,0.00023223,2]
[329730897,1718626241380,-303.836,0.00023224,2]
[329730898,1718626241400,-919.509,0.00023224,2]
[329730899,1718626241431,-1830.0,0.00023224,2]
[329730900,1718626241446,-811.0,0.00023224,2]
[329730901,1718626241470,-150.0,0.00023224,2]
[329730902,1718626241497,-447.0,0.00023224,2]
[329730903,1718626241519,-1304.0,0.00023224,2]
[329730904,1718626241530,-1981.0,0.00023224,2]
[329730905,1718626241541,-544.0,0.00023224,2]
[329730906,1718626241558,-3194.0,0.00023224,2]
[329730907,1718626241593,-5765.0,0.00023224,2]
[329730908,1718626241605,-290.0,0.00023224,2]
[329730909,1718626241618,-213.26683308,0.00023224,2]
[329730910,1718626241659,-275.96458678,0.00023224,2]
[329730911,1718626241765,-876.16594478,0.00023224,2]
[329730912,1718626241781,-3790.60263536,0.00023224,2]
[329730913,1718626241797,-1448.779,0.00023224,2]
[329730914,1718626241830,-38118.0,0.00023224,2]
[329730915,1718626241848,-1196.0,0.00023224,2]
[329730916,1718626241881,-250.0,0.00024233,2]
[329730917,1718626241897,-744.0,0.00024366,2]
[329730918,1718626241908,-295.1,0.00024366,2]
[329730919,1718626241926,-19918.51836464,0.00024427,2]
[329730920,1718626241943,-5081.48163536,0.00024427,2]
[329730921,1718626241957,-2.01841139,0.00024623,2]
[329730922,1718626241980,-247.98158861,0.00024623,2]
[329730923,1718626241992,-155.0,0.0002489,2]
[329730924,1718626242018,-141.59605048,0.00024894,2]
[329730929,1718626242364,-8.40394952,0.00024894,2]
[329730931,1718626242377,-150.0,0.00024894,2]
[329730934,1718626242432,-150.0,0.00024894,2]
[329730935,1718626242451,-20.52392916,0.000249,2]
[329730942,1718626242730,-255.06953445,0.000249,2]
[329730943,1718626242757,-1235.47644,0.000249,2]
[329730949,1718626244467,-752.01309142,0.000249,2]
[329730950,1718626244482,-1772.39,0.00024936,2]
[329730951,1718626244494,-250.0,0.0002496,2]
[329730952,1718626244516,-834.1091607,0.00025,2]
[329730953,1718626244531,-1350.0,0.00025,2]
[329730954,1718626244562,-1278.71461203,0.00025,2]
[329730955,1718626244589,-707.49477052,0.00025,2]
[329730956,1718626244605,-9805.22,0.00025193,2]
[329730957,1718626244625,-1152.0,0.00025259,2]
[329730958,1718626244648,-389.09,0.00025286,2]
[329730959,1718626244691,-418.01,0.00025479,2]
[329730960,1718626244704,-931.41044812,0.0002599,2]
[329730961,1718626244739,-5000.0,0.0002599,7]
[329730962,1718626244752,-369.56846571,0.00026,2]
[329730963,1718626244769,-200.0,0.00026,9]
[329730964,1718626244808,-500.0,0.000261,9]
[329730965,1718626244824,-700.0,0.000262,9]
[329730966,1718626244845,-500.0,0.00026224,2]
[329730967,1718626244858,-500.0,0.00026224,2]
[329730968,1718626244874,-4428.221,0.00026224,2]
[329730969,1718626244890,-1192.0,0.00026224,2]
[329730970,1718626244903,-1000.0,0.000263,9]
[329730971,1718626244920,-585.63532094,0.00026364,4]
[329730972,1718626244935,-1300.0,0.000264,9]
[329730973,1718626244980,-418.01,0.00026438,2]
[329730974,1718626245010,-418.01,0.00026438,2]
[329730975,1718626245061,-404.07,0.00026438,2]
[329730976,1718626245122,-417.85,0.00026438,2]
[329730977,1718626245149,-285.54618197,0.00026483,2]
[329730978,1718626245182,-200.0,0.000265,9]
[329730979,1718626245196,-2361.38884276,0.00026524,2]
[329730980,1718626245227,-150.45941558,0.00026569,2]
[329730981,1718626245254,-150.0,0.00026575,2]
[329730982,1718626245271,-423.27,0.00026575,2]
[329730983,1718626245284,-150.0,0.00026575,2]
[329730984,1718626245321,-151.73,0.00026575,2]
[329730985,1718626245334,-164.44,0.00026575,2]
[329730986,1718626245352,-150.0,0.00026575,2]
[329730987,1718626245369,-353.95,0.00026575,2]
[329730988,1718626245407,-527.15,0.00026575,2]
[329730989,1718626245423,-300.0,0.00026575,2]
[329730990,1718626245445,-152.56,0.00026575,2]
[329730991,1718626245500,-423.27,0.00026575,2]
[329730992,1718626245531,-150.0,0.00026575,2]
[329730993,1718626245586,-527.15,0.00026575,2]
[329730994,1718626245625,-150.0,0.00026575,2]
[329730995,1718626245664,-353.95,0.00026575,2]
[329730996,1718626245725,-150.0,0.00026575,2]
[329730997,1718626245736,-150.0,0.00026575,2]
[329730998,1718626245812,-164.44,0.00026575,2]
[329730999,1718626245852,-527.15,0.00026575,2]
[329731000,1718626245868,-150.0,0.00026575,2]
[329731001,1718626245880,-150.0,0.00026575,2]
[329731002,1718626245891,-163.96,0.00026575,2]
[329731003,1718626245916,-352.93,0.00026575,2]
[329731004,1718626245928,-422.04,0.00026575,2]
[329731005,1718626245953,-150.0,0.00026575,2]
[329731006,1718626245965,-150.0,0.00026575,2]
[329731007,1718626246014,-199.8,0.00026575,2]
[329731008,1718626246040,-332.74989068,0.00026581,2]
[329731009,1718626246051,-200.0,0.000266,9]
[329731010,1718626246074,-318.76414187,0.00026616,2]
[329731011,1718626246094,-166.66666667,0.0002666,2]
[329731012,1718626246108,-2361.38884276,0.00026673,2]
[329731013,1718626246148,-318.76414187,0.0002668,2]
[329731014,1718626246185,-175.6526745,0.00026691,2]
[329731015,1718626246198,-200.0,0.000267,9]
[329731016,1718626246226,-1048.13149264,0.00026747,2]
[329731017,1718626246254,-155.0,0.00026752,2]
[329731018,1718626246280,-200.0,0.000268,9]
[329731019,1718626246292,-158.41567961,0.00026803,2]
[329731020,1718626246303,-733.0,0.000269,9]
[329731021,1718626246314,-294.61446051,0.000269,2]
[329731022,1718626246327,-285.54618197,0.00026966,2]
[329731023,1718626246351,-153.98318988,0.00026968,2]
[329731024,1718626246363,-300.0,0.00026997,2]
[329731025,1718626246394,-630.78,0.00027,2]
[329731026,1718626246414,-1500.0,0.00027,10]
[329731027,1718626246433,-152.08149733,0.00027021,2]
[329731028,1718626246445,-332.74989068,0.00027021,2]
[329731029,1718626246458,-152.6839455,0.00027023,2]
[329731030,1718626246486,-288.10391608,0.00027045,2]
[329731031,1718626246500,-500.0,0.00027081,2]
[329731032,1718626246515,-500.0,0.00027082,2]
[329731033,1718626246552,-200.0,0.00027082,2]
[329731034,1718626246566,-57290.8705,0.000271,2]
[329731035,1718626246578,-150.0,0.000271,6]
[329731036,1718626246598,-318.76414187,0.00027108,2]
[329731037,1718626246616,-2361.38884276,0.0002711,2]
[329731038,1718626246635,-318.76414187,0.00027128,2]
[329731039,1718626246649,-180.0,0.00027152,2]
[329731040,1718626246663,-156.19431903,0.00027157,2]
[329731042,1718626246674,-636.0,0.00027167,2]
[329731043,1718626246685,-285.54618197,0.00027171,2]
[329731044,1718626246699,-160.0,0.00027182,2]
[329731045,1718626246734,-285.54618197,0.00027183,2]
[329731046,1718626246753,-160.0,0.00027191,2]
[329731047,1718626246764,-303.73358918,0.000272,2]
[329731048,1718626246800,-10000.0,0.000272,2]
[329731049,1718626246815,-21860.62608462,0.000272,2]
[329731050,1718626246830,-160.0,0.000272,2]
[329731051,1718626246852,-7500.0,0.000272,2]
[329731052,1718626246886,-24864.62145499,0.000272,3]
[329731053,1718626247865,-1145.75052003,0.000272,3]
[329731054,1718626247882,-1890.10525008,0.000272,2]
[329731055,1718626248357,-557.43938086,0.000272,2]
[329731056,1718626248374,-310.31199307,0.000272,2]
[329731057,1718626248394,-706.88731716,0.000272,2]
[329731058,1718626248616,-7686.76809829,0.000272,2]
[329731059,1718626248664,-395.53727413,0.000272,5]
[329731060,1718626248677,-2223.75648749,0.00027203,2]
[329731061,1718626248703,-740.40531184,0.00027204,2]
[329731062,1718626248742,-259.59468816,0.00027204,2]
[329731063,1718626248790,-300.0,0.00027208,2]
[329731064,1718626248826,-150.0,0.00027216,2]
[329731065,1718626248840,-150.0,0.00027219,2]
[329731066,1718626248852,-303.73358918,0.00027224,2]
[329731067,1718626248863,-150.0,0.00027225,2]
[329731068,1718626248880,-150.0,0.00027234,2]
[329731069,1718626248896,-1646.5044096,0.00027247,6]
[329731070,1718626248910,-303.73358918,0.00027249,2]
[329731071,1718626248922,-732.23103731,0.00027255,2]
[329731072,1718626248948,-767.76896269,0.00027255,2]
[329731073,1718626248963,-52.91273107,0.00027263,2]
[329731074,1718626248979,-247.08726893,0.00027263,2]
[329731075,1718626248998,-303.73358918,0.00027273,2]
[329731076,1718626249009,-300.0,0.00027275,2]
[329731077,1718626249023,-150.0,0.00027287,2]
[329731078,1718626249049,-150.26,0.0002729,2]
[329731079,1718626249080,-150.26,0.0002729,2]
[329731080,1718626249108,-150.26,0.0002729,2]
[329731081,1718626249129,-150.26,0.0002729,2]
[329731082,1718626249147,-150.26,0.0002729,2]
[329731083,1718626249162,-150.26,0.0002729,2]
[329731084,1718626249183,-150.26,0.0002729,2]
[329731085,1718626249204,-150.26,0.0002729,2]
[329731086,1718626249216,-150.26,0.0002729,2]
[329731087,1718626249233,-150.26,0.0002729,2]
[329731088,1718626249247,-150.26,0.0002729,2]
[329731090,1718626249284,-150.26,0.0002729,2]
[329731092,1718626249305,-150.26,0.0002729,2]
[329731094,1718626249325,-150.26,0.0002729,2]
[329731095,1718626249344,-150.26,0.0002729,2]
[329731097,1718626249361,-150.26,0.0002729,2]
[329731099,1718626249372,-150.26,0.0002729,2]
[329731101,1718626249386,-150.26,0.0002729,2]
[329731103,1718626249403,-150.26,0.0002729,2]
[329731104,1718626249414,-150.26,0.0002729,2]
[329731106,1718626249439,-150.26,0.0002729,2]
[329731108,1718626249468,-150.26,0.0002729,2]
[329731109,1718626249480,-150.26,0.0002729,2]
[329731111,1718626249501,-150.26,0.0002729,2]
[329731112,1718626249521,-150.26,0.0002729,2]
[329731113,1718626249534,-150.26,0.0002729,2]
[329731114,1718626249556,-150.26,0.0002729,2]
[329731116,1718626249609,-150.26,0.0002729,2]
[329731118,1718626249631,-150.26,0.0002729,2]
[329731119,1718626249643,-150.26,0.0002729,2]
[329731121,1718626249658,-150.26,0.0002729,2]
[329731122,1718626249670,-150.26,0.0002729,2]
[329731124,1718626249688,-150.26,0.0002729,2]
[329731126,1718626249710,-150.26,0.0002729,2]
[329731127,1718626249727,-150.26,0.0002729,2]
[329731129,1718626249778,-150.26,0.0002729,2]
[329731131,1718626249805,-150.26,0.0002729,2]
[329731133,1718626249832,-150.26,0.0002729,2]
[329731134,1718626249865,-150.26,0.0002729,2]
[329731136,1718626249897,-150.26,0.0002729,2]
[329731138,1718626249911,-150.26,0.0002729,2]
[329731140,1718626249958,-150.26,0.0002729,2]
[329731142,1718626249987,-150.26,0.0002729,2]
[329731144,1718626250000,-150.26,0.0002729,2]
[329731146,1718626250014,-150.26,0.0002729,2]
[329731148,1718626250039,-150.26,0.0002729,2]
[329731150,1718626250053,-150.26,0.0002729,2]
[329731152,1718626250077,-150.26,0.0002729,2]
[329731154,1718626250089,-150.26,0.0002729,2]
[329731155,1718626250116,-150.26,0.0002729,2]
[329731157,1718626250126,-150.26,0.0002729,2]
[329731159,1718626250137,-150.26,0.0002729,2]
[329731161,1718626250151,-150.26,0.0002729,2]
[329731163,1718626250169,-150.26,0.0002729,2]
[329731165,1718626250197,-95.89914189,0.0002729,2]
[329731199,1718626250876,-54.36085811,0.0002729,2]
[329731202,1718626250902,-150.26,0.0002729,2]
[329731204,1718626250916,-150.26,0.0002729,2]
[329731206,1718626250930,-150.26,0.0002729,2]
[329731209,1718626250949,-150.26,0.0002729,2]
[329731210,1718626250969,-150.26,0.0002729,2]
[329731212,1718626250981,-150.26,0.0002729,2]
[329731214,1718626250996,-83.59260641,0.0002729,2]
[329731253,1718626251651,-66.66739359,0.0002729,2]
[329731255,1718626251664,-150.26,0.0002729,2]
[329731257,1718626251686,-150.26,0.0002729,2]
[329731259,1718626251706,-150.26,0.0002729,2]
[329731261,1718626251726,-74.85920641,0.0002729,2]
[329731467,1718627425826,200.0,0.0001194,2]
[329731482,1718627434090,-180.0,0.00017247,2]
[329731483,1718627434105,-259.99573651,0.00017248,2]
[329731484,1718627434116,-212.20082654,0.00020824,2]
[329731485,1718627434139,-1000.0,0.00021295,2]
[329731486,1718627434150,-300.0,0.000229,2]
[329731487,1718627434160,-159.98422627,0.00023065,2]
[329731489,1718627434924,-707.00826799,0.00023065,2]
[329731490,1718627434937,-133.00750574,0.00023065,2]
[329731491,1718627434950,-1000.0,0.00023607,2]
[329731492,1718627434967,-284.23,0.00023607,2]
[329731493,1718627434979,-350.18,0.00023674,2]
[329731494,1718627434999,-214.0,0.0002391,2]
[329731495,1718627435018,-606.07,0.00024384,2]
[329731496,1718627435050,-214.0,0.000245,2]
[329731497,1718627435068,-766.54404667,0.00025,2]
[329731498,1718627435081,-214.0,0.0002509,2]
[329731499,1718627435093,-204.286378,0.00025349,2]
[329731500,1718627435113,-45.713622,0.00025349,2]
[329731501,1718627435124,-250.0,0.00025389,2]
[329731502,1718627435147,-318.26,0.00025417,30]
[329731503,1718627435190,-595.2,0.00025429,2]
[329731504,1718627435205,-250.0,0.00025432,2]
[329731505,1718627435225,-245.91,0.00025549,2]
[329731506,1718627435235,-214.0,0.0002568,2]
[329731507,1718627435246,-350.18,0.00025938,2]
[329731508,1718627435268,-369.56846571,0.00026,2]
[329731509,1718627435282,-214.0,0.0002627,2]
[329731510,1718627435293,-152.0,0.00026366,3]
[329731511,1718627435332,-188.78420404,0.00026481,2]
[329731512,1718627435343,-188.78420404,0.00026526,2]
[329731513,1718627435364,-159.99071252,0.00026562,2]
[329731514,1718627435375,-4927.31405687,0.00026671,2]
[329731515,1718627435389,-5163.71594313,0.00026671,2]
[329731516,1718627435401,-166.98398833,0.00026685,2]
[329731517,1718627435412,-161.47736632,0.00026688,2]
[329731518,1718627435439,-276.26225629,0.00026691,2]
[329731519,1718627435456,-2223.75648749,0.00026707,2]
[329731520,1718627435470,-152.6839455,0.00026707,2]
[329731521,1718627435482,-433.27659711,0.00026715,2]
[329731522,1718627435508,-159.99071252,0.00026758,2]
[329731523,1718627435519,-433.27659711,0.00026775,2]
[329731524,1718627435553,-1056.13507959,0.00026803,2]
[329731525,1718627435566,-214.0,0.0002686,2]
[329731526,1718627435589,-213.0,0.0002686,2]
[329731527,1718627435601,-276.26225629,0.00026874,2]
[329731528,1718627435619,-154.31165084,0.00026876,2]
[329731529,1718627435630,-156.14043819,0.00026888,2]